fUST/lending_fUST_20240813
["ID","MTS","AMOUNT","RATE_DAILY","PERIOD"]
[334698598,1723482650285,-500.0,0.00016298,2]
[334698599,1723482650294,-500.0,0.00016298,2]
[334698600,1723482650303,-500.0,0.00016298,2]
[334698601,1723482650313,-805.23,0.00016298,2]
[334698602,1723482650322,-500.0,0.00016298,2]
[334698603,1723482650337,-500.0,0.00016298,2]
[334698604,1723482650348,-576.76,0.00016298,2]
[334698605,1723482650359,-500.0,0.00016298,2]
[334698606,1723482650369,-818.86,0.00016298,2]
[334698607,1723482650379,-792.06,0.00016298,2]
[334698608,1723482650389,-500.0,0.00016298,2]
[334698609,1723482650399,-777.817956,0.00016298,2]
[334698610,1723482650410,-1169.81,0.00016298,2]
[334698611,1723482650419,-777.817956,0.00016298,2]
[334698612,1723482650429,-500.0,0.00016298,2]
[334698613,1723482650439,-989.58,0.00016298,2]
[334698614,1723482650452,-777.48,0.00016298,2]
[334698615,1723482650462,-500.0,0.00016298,2]
[334698616,1723482650471,-532.92,0.00016298,2]
[334698617,1723482650481,-500.0,0.00016298,2]
[334698618,1723482650491,-4589.52,0.00016298,2]
[334698619,1723482650502,-1073.29,0.00016298,2]
[334698620,1723482650512,-862.57,0.00016298,2]
[334698621,1723482650522,-1199.42,0.00016298,2]
[334698622,1723482650533,-459.209408,0.00016298,2]
[334698623,1723482650542,-297.823317,0.00016298,2]
[334698624,1723482650552,-500.0,0.00016298,2]
[334698625,1723482650562,-459.209408,0.00016298,2]
[334698626,1723482650571,-297.823317,0.00016298,2]
[334698627,1723482650582,-291.76155,0.00016298,2]
[334698628,1723482650591,-500.0,0.00016298,2]
[334698629,1723482650601,-291.76155,0.00016298,2]
[334698630,1723482650611,-856.91,0.00016298,2]
[334698631,1723482650621,-502.53,0.00016298,2]
[334698632,1723482650631,-646.48,0.00016298,2]
[334698633,1723482650640,-5542.73,0.00016298,2]
[334698634,1723482650650,-500.0,0.00016298,2]
[334698635,1723482650660,-500.0,0.00016298,2]
[334698636,1723482650669,-797.12,0.00016298,2]
[334698637,1723482650678,-1028.7,0.00016298,2]
[334698638,1723482650688,-151.0,0.00016298,2]
[334698639,1723482650698,-531.41,0.00016298,2]
[334698640,1723482650708,-693.01,0.00016298,2]
[334698641,1723482650717,-603.87,0.00016298,2]
[334698642,1723482650727,-2310.68,0.00016298,2]
[334698643,1723482650737,-630.083693,0.00016298,2]
[334698644,1723482650746,-500.0,0.00016298,2]
[334698645,1723482650757,-500.0,0.00016298,2]
[334698646,1723482650767,-3390.01,0.00016298,2]
[334698647,1723482650777,-630.083693,0.00016298,2]
[334698648,1723482650786,-500.0,0.00016298,2]
[334698649,1723482650796,-564.83,0.00016298,2]
[334698650,1723482650806,-500.0,0.00016298,2]
[334698651,1723482650816,-151.0,0.00016298,2]
[334698652,1723482650826,-683.57,0.00016298,2]
[334698653,1723482650836,-151.0,0.00016298,2]
[334698654,1723482650846,-1023.44,0.00016298,2]
[334698655,1723482650854,-151.0,0.00016298,2]
[334698656,1723482650864,-500.0,0.00016298,2]
[334698657,1723482650873,-500.0,0.00016298,2]
[334698658,1723482650883,-500.0,0.00016298,2]
[334698659,1723482650892,-500.0,0.00016298,2]
[334698660,1723482650902,-500.0,0.00016298,2]
[334698661,1723482650911,-500.0,0.00016298,2]
[334698662,1723482650921,-500.0,0.00016298,2]
[334698663,1723482650931,-500.0,0.00016298,2]
[334698664,1723482650940,-617.79,0.00016298,2]
[334698665,1723482650949,-500.0,0.00016298,2]
[334698666,1723482650958,-500.0,0.00016298,2]
[334698667,1723482650967,-151.0,0.00016298,2]
[334698668,1723482650977,-334.51810315,0.00016298,2]
[334698669,1723482650987,-151.0,0.00016298,2]
[334698670,1723482650996,-500.0,0.00016298,2]
[334698671,1723482651006,-500.0,0.00016298,2]
[334698672,1723482651015,-874.28,0.00016298,2]
[334698673,1723482651025,-1051.56,0.00016298,2]
[334698674,1723482651034,-710.59,0.00016298,2]
[334698675,1723482651043,-906.67,0.00016298,2]
[334698676,1723482651053,-2754.73,0.00016298,2]
[334698677,1723482651063,-500.0,0.00016298,2]
[334698678,1723482651073,-352.759384,0.00016298,2]
[334698679,1723482651084,-352.75938,0.00016298,2]
[334698680,1723482651094,-500.0,0.00016298,2]
[334698681,1723482651103,-1195.26,0.00016298,2]
[334698682,1723482651113,-834.44,0.00016299,2]
[334698683,1723482651122,-500.0,0.00016299,2]
[334698684,1723482651131,-500.0,0.00016299,2]
[334698685,1723482651141,-500.0,0.00016299,2]
[334698686,1723482651151,-395.40292125,0.00016299,2]
[334698687,1723482651160,-483.13786724,0.00016299,2]
[334698688,1723482651170,-500.0,0.00016299,2]
[334698689,1723482651182,-500.0,0.00016299,2]
[334698690,1723482651191,-151.0,0.00016299,2]
[334698691,1723482651201,-500.0,0.00016299,2]
[334698692,1723482651210,-579.12,0.00016299,2]
[334698693,1723482651219,-500.0,0.00016299,2]
[334698694,1723482651229,-151.0,0.00016299,2]
[334698695,1723482651240,-500.0,0.00016299,2]
[334698696,1723482651249,-500.0,0.00016299,2]
[334698697,1723482651258,-500.0,0.00016299,2]
[334698698,1723482651268,-500.0,0.00016299,2]
[334698699,1723482651277,-500.0,0.00016299,2]
[334698700,1723482651286,-500.0,0.00016299,2]
[334698701,1723482651296,-586.32,0.00016299,2]
[334698702,1723482651306,-500.0,0.00016299,2]
[334698703,1723482651315,-500.0,0.00016299,2]
[334698704,1723482651324,-500.0,0.00016299,2]
[334698705,1723482651336,-2029.92,0.00016299,2]
[334698706,1723482651347,-500.0,0.00016299,2]
[334698707,1723482651357,-500.0,0.00016299,2]
[334698708,1723482651366,-500.0,0.00016299,2]
[334698709,1723482651376,-500.0,0.00016299,2]
[334698710,1723482651386,-500.0,0.00016299,2]
[334698711,1723482651395,-500.0,0.00016299,2]
[334698712,1723482651405,-500.0,0.000163,2]
[334698713,1723482651414,-500.0,0.00016308,2]
[334698714,1723482651423,-500.0,0.00016308,2]
[334698715,1723482651432,-511.6,0.00016308,2]
[334698716,1723482651442,-645.31,0.00016308,2]
[334698717,1723482651455,-646.51,0.00016308,2]
[334698718,1723482651465,-500.0,0.00016308,2]
[334698719,1723482651474,-571.25,0.00016308,2]
[334698720,1723482651483,-500.0,0.00016308,2]
[334698721,1723482651493,-500.0,0.00016308,2]
[334698722,1723482651502,-500.0,0.00016308,2]
[334698723,1723482651513,-500.0,0.00016308,2]
[334698724,1723482651522,-974.88,0.00016308,2]
[334698725,1723482651532,-500.0,0.00016308,2]
[334698726,1723482651542,-500.0,0.00016308,2]
[334698727,1723482651551,-1271.71,0.00016308,2]
[334698728,1723482651561,-500.0,0.00016308,2]
[334698729,1723482651570,-151.0,0.00016308,2]
[334698730,1723482651581,-151.0,0.00016308,2]
[334698731,1723482651590,-500.0,0.00016308,2]
[334698732,1723482651599,-500.0,0.00016308,2]
[334698733,1723482651608,-503.77,0.00016308,2]
[334698734,1723482651618,-315.113272,0.00016308,2]
[334698735,1723482651627,-315.113272,0.00016308,2]
[334698736,1723482651639,-667.51,0.00016308,2]
[334698737,1723482651650,-500.0,0.00016308,2]
[334698738,1723482651661,-1036.64,0.00016308,2]
[334698739,1723482651670,-939.18,0.00016308,2]
[334698740,1723482651680,-501.81,0.00016308,2]
[334698741,1723482651690,-500.0,0.00016308,2]
[334698742,1723482651701,-500.0,0.00016308,2]
[334698743,1723482651712,-500.0,0.00016308,2]
[334698744,1723482651723,-500.0,0.00016308,2]
[334698745,1723482651735,-541.47,0.00016308,2]
[334698746,1723482651745,-807.73,0.00016308,2]
[334698747,1723482651754,-1252.91,0.00016308,2]
[334698748,1723482651763,-1195.46,0.00016308,2]
[334698749,1723482651772,-500.0,0.00016308,2]
[334698750,1723482651782,-1858.24,0.00016308,2]
[334698751,1723482651792,-500.0,0.00016308,2]
[334698752,1723482651801,-1085.46,0.00016308,2]
[334698753,1723482651810,-500.0,0.00016308,2]
[334698754,1723482651819,-500.0,0.00016308,2]
[334698755,1723482651828,-536.53,0.00016308,2]
[334698756,1723482651837,-266.940094,0.00016308,2]
[334698757,1723482651846,-151.0,0.00016308,2]
[334698758,1723482651856,-151.0,0.00016309,2]
[334698759,1723482651865,-777.817956,0.00016309,2]
[334698760,1723482651875,-777.817956,0.00016309,2]
[334698761,1723482651884,-150.01,0.00016339,2]
[334698762,1723482651894,-2993.97680522,0.00016339,2]
[334698763,1723482651903,-777.817956,0.00016347,2]
[334698764,1723482651913,-777.817956,0.00016347,2]
[334698765,1723482651922,-459.209408,0.00016347,2]
[334698766,1723482651932,-297.823317,0.00016347,2]
[334698767,1723482651941,-459.209408,0.00016347,2]
[334698768,1723482651950,-297.823317,0.00016347,2]
[334698769,1723482651959,-291.76155,0.00016347,2]
[334698770,1723482651969,-291.76155,0.00016347,2]
[334698771,1723482651978,-154.71377951,0.00016347,2]
[334698772,1723482651987,-150.112233,0.000164,2]
[334698773,1723482651997,-200.0,0.00016438,2]
[334698774,1723482652006,-151.0,0.00016438,2]
[334698775,1723482652015,-630.083693,0.00016438,2]
[334698776,1723482652025,-630.083693,0.00016438,2]
[334698777,1723482652035,-500.0,0.00016438,2]
[334698778,1723482652045,-500.0,0.00016438,2]
[334698779,1723482652168,-500.0,0.00016438,2]
[334698780,1723482652178,-638.40330088,0.00016438,2]
[334698781,1723482652187,-151.0,0.00016438,2]
[334698782,1723482652197,-245.060119,0.00016438,2]
[334698783,1723482652207,-151.0,0.00016438,2]
[334698784,1723482652218,-238.715235,0.00016438,2]
[334698785,1723482652228,-238.715235,0.00016438,2]
[334698786,1723482652238,-238.715235,0.00016438,2]
[334698787,1723482652247,-238.715235,0.00016438,2]
[334698788,1723482652258,-153.0,0.00016438,2]
[334698789,1723482652268,-153.0,0.00016438,2]
[334698790,1723482652277,-153.0,0.00016438,2]
[334698791,1723482652286,-153.0,0.00016438,2]
[334698792,1723482652295,-153.0,0.00016438,2]
[334698793,1723482652304,-153.0,0.00016438,2]
[334698794,1723482652313,-153.0,0.00016438,2]
[334698795,1723482652324,-153.0,0.00016438,2]
[334698796,1723482652339,-153.0,0.00016438,2]
[334698797,1723482652348,-153.0,0.00016438,2]
[334698798,1723482652357,-153.0,0.00016438,2]
[334698799,1723482652366,-153.0,0.00016438,2]
[334698800,1723482652375,-153.0,0.00016438,2]
[334698801,1723482652383,-153.0,0.00016438,2]
[334698802,1723482652393,-153.0,0.00016438,2]
[334698803,1723482652402,-151.0,0.00016438,2]
[334698804,1723482652411,-153.0,0.00016438,2]
[334698805,1723482652420,-153.0,0.00016438,2]
[334698806,1723482652431,-153.0,0.00016438,2]
[334698807,1723482652444,-153.0,0.00016438,2]
[334698808,1723482652456,-153.0,0.00016438,2]
[334698809,1723482652465,-153.0,0.00016438,2]
[334698810,1723482652475,-153.0,0.00016438,2]
[334698811,1723482652484,-153.0,0.00016438,2]
[334698812,1723482652494,-153.0,0.00016438,2]
[334698813,1723482652504,-153.0,0.00016438,2]
[334698814,1723482652513,-153.0,0.00016438,2]
[334698815,1723482652525,-153.0,0.00016438,2]
[334698816,1723482652534,-153.0,0.00016438,2]
[334698817,1723482652543,-153.0,0.00016438,2]
[334698818,1723482652553,-153.0,0.00016438,2]
[334698819,1723482652562,-153.0,0.00016438,2]
[334698820,1723482652571,-153.0,0.00016438,2]
[334698821,1723482652584,-153.0,0.00016438,2]
[334698822,1723482652593,-153.0,0.00016438,2]
[334698823,1723482652603,-153.0,0.00016438,2]
[334698824,1723482652612,-153.0,0.00016438,2]
[334698825,1723482652621,-153.0,0.00016438,2]
[334698826,1723482652630,-153.0,0.00016438,2]
[334698827,1723482652639,-153.0,0.00016438,2]
[334698828,1723482652649,-153.0,0.00016438,2]
[334698829,1723482652658,-153.0,0.00016438,2]
[334698830,1723482652667,-153.0,0.00016438,2]
[334698831,1723482652683,-153.0,0.00016438,2]
[334698832,1723482652692,-153.0,0.00016438,2]
[334698833,1723482652701,-153.0,0.00016438,2]
[334698834,1723482652710,-153.0,0.00016438,2]
[334698835,1723482652721,-153.0,0.00016438,2]
[334698836,1723482652730,-153.0,0.00016438,2]
[334698837,1723482652740,-153.0,0.00016438,2]
[334698838,1723482652750,-153.0,0.00016438,2]
[334698839,1723482652759,-153.0,0.00016438,2]
[334698840,1723482652768,-153.0,0.00016438,2]
[334698841,1723482652778,-153.0,0.00016438,2]
[334698842,1723482652787,-153.0,0.00016438,2]
[334698843,1723482652797,-153.0,0.00016438,2]
[334698844,1723482652806,-153.0,0.00016438,2]
[334698845,1723482652815,-153.0,0.00016438,2]
[334698846,1723482652824,-153.0,0.00016438,2]
[334698847,1723482652837,-153.0,0.00016438,2]
[334698848,1723482652847,-153.0,0.00016438,2]
[334698849,1723482652856,-153.0,0.00016438,2]
[334698850,1723482652866,-153.0,0.00016438,2]
[334698851,1723482652876,-153.0,0.00016438,2]
[334698852,1723482652885,-153.0,0.00016438,2]
[334698853,1723482652894,-153.0,0.00016438,2]
[334698854,1723482652904,-153.0,0.00016438,2]
[334698855,1723482652914,-153.0,0.00016438,2]
[334698856,1723482652923,-153.0,0.00016438,2]
[334698857,1723482652933,-153.0,0.00016438,2]
[334698858,1723482652942,-153.0,0.00016438,2]
[334698859,1723482652951,-153.0,0.00016438,2]
[334698860,1723482652961,-153.0,0.00016438,2]
[334698861,1723482652970,-153.0,0.00016438,2]
[334698862,1723482652979,-277.46411292,0.00016532,2]
[334698863,1723482652989,-1210.57,0.00016551,2]
[334698864,1723482652998,-806.72,0.00016551,2]
[334698865,1723482653007,-500.0,0.00016561,2]
[334698866,1723482653016,-2139.99,0.00016561,2]
[334698867,1723482653026,-8033.28,0.00016561,2]
[334698868,1723482653035,-873.01,0.00016561,2]
[334698869,1723482653045,-1377.31,0.00016561,2]
[334698870,1723482653054,-944.83,0.00016561,2]
[334698871,1723482653065,-500.0,0.00016562,2]
[334698872,1723482653075,-4309.2,0.00016562,2]
[334698873,1723482653086,-1327.45,0.00016562,2]
[334698874,1723482653097,-1061.79,0.00016562,2]
[334698875,1723482653106,-4692.37,0.00016562,2]
[334698876,1723482653115,-500.0,0.00016562,2]
[334698877,1723482653124,-1301.15,0.00016562,2]
[334698878,1723482653134,-500.0,0.00016562,2]
[334698879,1723482653144,-1477.48,0.00016562,2]
[334698880,1723482653154,-1537.7,0.00016562,2]
[334698881,1723482653164,-1492.05,0.00016562,2]
[334698882,1723482653174,-7818.96,0.00016562,2]
[334698883,1723482653183,-2345.86,0.00016562,2]
[334698884,1723482653192,-1440.32,0.00016562,2]
[334698885,1723482653202,-1481.47,0.00016562,2]
[334698886,1723482653211,-500.0,0.00016562,2]
[334698887,1723482653220,-547.14,0.00016562,2]
[334698888,1723482653230,-757.41,0.00016562,2]
[334698889,1723482653242,-500.0,0.00016562,2]
[334698890,1723482653252,-1373.41,0.00016562,2]
[334698891,1723482653262,-500.0,0.00016571,2]
[334698892,1723482653271,-500.0,0.00016571,2]
[334698893,1723482653281,-500.0,0.00016571,2]
[334698894,1723482653291,-151.0,0.00016572,2]
[334698895,1723482653301,-500.0,0.00016572,2]
[334698896,1723482653311,-500.0,0.00016572,2]
[334698897,1723482653321,-623.12,0.00016572,2]
[334698898,1723482653332,-500.0,0.00016572,2]
[334698899,1723482653342,-500.0,0.00016572,2]
[334698900,1723482653352,-552.72,0.00016572,2]
[334698901,1723482653363,-672.42,0.00016572,2]
[334698902,1723482653374,-599.83,0.00016572,2]
[334698903,1723482653383,-151.0,0.00016572,2]
[334698904,1723482653392,-151.0,0.00016572,2]
[334698905,1723482653402,-500.0,0.00016572,2]
[334698906,1723482653411,-500.0,0.00016572,2]
[334698907,1723482653420,-500.0,0.00016572,2]
[334698908,1723482653429,-500.0,0.00016572,2]
[334698909,1723482653439,-249.8513056,0.00016572,2]
[334698910,1723482653453,-791.7,0.00016572,2]
[334698911,1723482653462,-996.77,0.00016572,2]
[334698912,1723482653472,-315.113272,0.00016572,2]
[334698913,1723482653482,-315.113272,0.00016572,2]
[334698914,1723482653493,-500.0,0.00016572,2]
[334698915,1723482653502,-500.0,0.00016572,2]
[334698916,1723482653512,-459.84987038,0.00016572,2]
[334698917,1723482653521,-500.0,0.00016572,2]
[334698918,1723482653531,-500.0,0.00016572,2]
[334698919,1723482653541,-500.0,0.00016572,2]
[334698920,1723482653550,-805.23,0.00016572,2]
[334698921,1723482653560,-500.0,0.00016572,2]
[334698922,1723482653569,-500.0,0.00016572,2]
[334698923,1723482653579,-576.76,0.00016572,2]
[334698924,1723482653588,-500.0,0.00016572,2]
[334698925,1723482653598,-818.86,0.00016572,2]
[334698926,1723482653607,-792.06,0.00016572,2]
[334698927,1723482653616,-500.0,0.00016572,2]
[334698928,1723482653626,-1169.81,0.00016572,2]
[334698929,1723482653636,-989.58,0.00016572,2]
[334698930,1723482653647,-513.31893746,0.00016572,2]
[334698931,1723482653659,-777.48,0.00016572,2]
[334698932,1723482653668,-500.0,0.00016572,2]
[334698933,1723482653677,-532.92,0.00016572,2]
[334698934,1723482653687,-500.0,0.00016572,2]
[334698935,1723482653696,-4589.52,0.00016572,2]
[334698936,1723482653705,-1073.29,0.00016572,2]
[334698937,1723482653715,-862.57,0.00016572,2]
[334698938,1723482653727,-1199.42,0.00016572,2]
[334698939,1723482653736,-500.0,0.00016572,2]
[334698940,1723482653745,-856.91,0.00016572,2]
[334698941,1723482653755,-502.53,0.00016572,2]
[334698942,1723482653765,-646.48,0.00016572,2]
[334698943,1723482653773,-5542.73,0.00016572,2]
[334698944,1723482653784,-500.0,0.00016572,2]
[334698945,1723482653793,-500.0,0.00016572,2]
[334698946,1723482653803,-797.12,0.00016572,2]
[334698947,1723482653812,-1028.7,0.00016572,2]
[334698948,1723482653822,-531.41,0.00016572,2]
[334698949,1723482653832,-693.01,0.00016572,2]
[334698950,1723482653841,-603.87,0.00016572,2]
[334698951,1723482653851,-2310.68,0.00016572,2]
[334698952,1723482653860,-354.23779702,0.00016572,2]
[334698953,1723482653870,-500.0,0.00016572,2]
[334698954,1723482653879,-3390.01,0.00016572,2]
[334698955,1723482653888,-500.0,0.00016572,2]
[334698956,1723482653898,-564.83,0.00016572,2]
[334698957,1723482653909,-500.0,0.00016572,2]
[334698958,1723482653919,-683.57,0.00016572,2]
[334698959,1723482653929,-1023.44,0.00016572,2]
[334698960,1723482653939,-500.0,0.00016572,2]
[334698961,1723482653948,-189.86641222,0.00016572,2]
[334698962,1723482653959,-500.0,0.00016572,2]
[334698963,1723482653968,-500.0,0.00016572,2]
[334698964,1723482653977,-500.0,0.00016572,2]
[334698965,1723482653987,-500.0,0.00016572,2]
[334698966,1723482653996,-500.0,0.00016572,2]
[334698967,1723482654006,-617.79,0.00016572,2]
[334698968,1723482654015,-500.0,0.00016572,2]
[334698969,1723482654025,-500.0,0.00016572,2]
[334698970,1723482654035,-500.0,0.00016572,2]
[334698971,1723482654046,-874.28,0.00016572,2]
[334698972,1723482654057,-1051.56,0.00016572,2]
[334698973,1723482654066,-710.59,0.00016572,2]
[334698974,1723482654076,-906.67,0.00016572,2]
[334698975,1723482654088,-2754.73,0.00016572,2]
[334698976,1723482654097,-500.0,0.00016572,2]
[334698977,1723482654106,-500.0,0.00016572,2]
[334698978,1723482654115,-1195.26,0.00016572,2]
[334698979,1723482654124,-200.0,0.00016573,2]
[334698980,1723482654133,-200.0,0.00016573,2]
[334698981,1723482654142,-200.0,0.00016573,2]
[334698982,1723482654154,-200.0,0.00016573,2]
[334698983,1723482654163,-200.0,0.00016573,2]
[334698984,1723482654172,-834.44,0.00016573,2]
[334698985,1723482654182,-500.0,0.00016573,2]
[334698986,1723482654192,-500.0,0.00016573,2]
[334698987,1723482654202,-500.0,0.00016573,2]
[334698988,1723482654211,-529.36290054,0.00016573,2]
[334698989,1723482654221,-500.0,0.00016573,2]
[334698990,1723482654230,-500.0,0.00016573,2]
[334698991,1723482654239,-579.12,0.00016573,2]
[334698992,1723482654248,-500.0,0.00016573,2]
[334698993,1723482654257,-500.0,0.00016573,2]
[334698994,1723482654268,-500.0,0.00016573,2]
[334698995,1723482654277,-500.0,0.00016573,2]
[334698996,1723482654287,-500.0,0.00016573,2]
[334698997,1723482654297,-500.0,0.00016573,2]
[334698998,1723482654306,-500.0,0.00016573,2]
[334698999,1723482654316,-586.32,0.00016573,2]
[334699000,1723482654325,-500.0,0.00016573,2]
[334699001,1723482654338,-500.0,0.00016573,2]
[334699002,1723482654347,-500.0,0.00016573,2]
[334699003,1723482654357,-2029.92,0.00016573,2]
[334699004,1723482654366,-500.0,0.00016573,2]
[334699005,1723482654375,-500.0,0.00016573,2]
[334699006,1723482654384,-500.0,0.00016573,2]
[334699007,1723482654394,-500.0,0.00016573,2]
[334699008,1723482654403,-500.0,0.00016573,2]
[334699009,1723482654412,-500.0,0.00016573,2]
[334699010,1723482654424,-777.817956,0.00016573,2]
[334699011,1723482654436,-777.817954,0.00016573,2]
[334699012,1723482654450,-459.209408,0.00016573,2]
[334699013,1723482654460,-297.823317,0.00016573,2]
[334699014,1723482654469,-459.209414,0.00016573,2]
[334699015,1723482654478,-297.823318,0.00016573,2]
[334699016,1723482654488,-291.76155,0.00016573,2]
[334699017,1723482654499,-291.76154,0.00016573,2]
[334699018,1723482654508,-151.0,0.00016573,2]
[334699019,1723482654520,-630.083693,0.00016573,2]
[334699020,1723482654529,-630.083699,0.00016573,2]
[334699021,1723482654539,-151.0,0.00016573,2]
[334699022,1723482654548,-151.0,0.00016573,2]
[334699023,1723482654558,-153.0,0.00016575,2]
[334699024,1723482654567,-382.6154198,0.00016575,2]
[334699025,1723482654577,-153.0,0.00016575,2]
[334699026,1723482654589,-153.0,0.00016575,2]
[334699027,1723482654599,-500.0,0.00016582,2]
[334699028,1723482654609,-500.0,0.00016582,2]
[334699029,1723482654622,-511.6,0.00016582,2]
[334699030,1723482654633,-645.31,0.00016582,2]
[334699031,1723482654645,-646.51,0.00016582,2]
[334699032,1723482654656,-500.0,0.00016582,2]
[334699033,1723482654666,-571.25,0.00016582,2]
[334699034,1723482654675,-500.0,0.00016582,2]
[334699035,1723482654684,-500.0,0.00016582,2]
[334699036,1723482654695,-500.0,0.00016582,2]
[334699037,1723482654704,-500.0,0.00016582,2]
[334699038,1723482654714,-974.88,0.00016582,2]
[334699039,1723482654727,-500.0,0.00016582,2]
[334699040,1723482654737,-639.4133917,0.00016582,2]
[334699041,1723482654749,-1271.71,0.00016582,2]
[334699042,1723482654758,-500.0,0.00016582,2]
[334699043,1723482654768,-151.0,0.00016582,2]
[334699044,1723482654777,-181.824227,0.00016582,2]
[334699045,1723482654786,-500.0,0.00016582,2]
[334699046,1723482654796,-212.08340062,0.00016582,2]
[334699047,1723482654806,-503.77,0.00016582,2]
[334699048,1723482654816,-315.113272,0.00016582,2]
[334699049,1723482654826,-315.113272,0.00016582,2]
[334699050,1723482654839,-667.51,0.00016582,2]
[334699051,1723482654955,-500.0,0.00016582,2]
[334699052,1723482654965,-1036.64,0.00016582,2]
[334699053,1723482654975,-939.18,0.00016582,2]
[334699054,1723482654984,-501.81,0.00016582,2]
[334699055,1723482654994,-500.0,0.00016582,2]
[334699056,1723482655003,-500.0,0.00016582,2]
[334699057,1723482655013,-500.0,0.00016582,2]
[334699058,1723482655022,-500.0,0.00016582,2]
[334699059,1723482655032,-541.47,0.00016582,2]
[334699060,1723482655041,-807.73,0.00016582,2]
[334699061,1723482655051,-1252.91,0.00016582,2]
[334699062,1723482655061,-1195.46,0.00016582,2]
[334699063,1723482655070,-500.0,0.00016582,2]
[334699064,1723482655079,-1858.24,0.00016582,2]
[334699065,1723482655090,-500.0,0.00016582,2]
[334699066,1723482655100,-1085.46,0.00016582,2]
[334699067,1723482655109,-500.0,0.00016582,2]
[334699068,1723482655120,-536.53,0.00016582,2]
[334699069,1723482655131,-151.0,0.00016583,2]
[334699070,1723482655142,-151.72358,0.00016583,2]
[334699071,1723482655153,-167.796544,0.00016583,2]
[334699072,1723482655164,-238.715235,0.00016583,2]
[334699073,1723482655174,-238.715235,0.00016583,2]
[334699074,1723482655185,-150.112233,0.000166,2]
[334699075,1723482655195,-153.0,0.00016603,2]
[334699076,1723482655204,-500.0,0.00016787,2]
[334699077,1723482655214,-150.112233,0.000168,2]
[334699078,1723482655223,-1210.57,0.00016825,2]
[334699079,1723482655233,-806.72,0.00016825,2]
[334699080,1723482655244,-500.0,0.00016835,2]
[334699081,1723482655255,-2139.99,0.00016835,2]
[334699082,1723482655264,-8033.28,0.00016835,2]
[334699083,1723482655274,-873.01,0.00016835,2]
[334699084,1723482655283,-1377.31,0.00016835,2]
[334699085,1723482655293,-944.83,0.00016835,2]
[334699086,1723482655303,-500.0,0.00016836,2]
[334699087,1723482655314,-4309.2,0.00016836,2]
[334699088,1723482655324,-1327.45,0.00016836,2]
[334699089,1723482655337,-1061.79,0.00016836,2]
[334699090,1723482655347,-4692.37,0.00016836,2]
[334699091,1723482655357,-500.0,0.00016836,2]
[334699092,1723482655366,-1301.15,0.00016836,2]
[334699093,1723482655375,-500.0,0.00016836,2]
[334699094,1723482655385,-1477.48,0.00016836,2]
[334699095,1723482655395,-1537.7,0.00016836,2]
[334699096,1723482655405,-1492.05,0.00016836,2]
[334699097,1723482655415,-7818.96,0.00016836,2]